[Event "Bhopal GM Open 2018"]
[Site "Bhopal"]
[Date "2018.12.28"]
[Round "10"]
[White "Laxman, R.R."]
[Black "Gajwa Ankit"]
[Result "1/2-1/2"]
[ECO "A48"]
[WhiteElo "2436"]
[BlackElo "2253"]
[Annotator "RC"]
[PlyCount "42"]
[EventDate "2018.12.21"]
[EventType "swiss"]
[EventCountry "IND"]
[SourceTitle "playchess.com"]
[Source "ChessBase"]
[SourceQuality "1"]
[TimeControl "5400+30"]

1. d4 {[%emt 0:00:00]} Nf6 {[%emt 0:00:00]} 2. Nf3 {[%emt 0:00:00]} g6 {[%emt 0:00:00]} 3. c4 {[%emt 0:00:00]} Bg7 {[%emt 0:00:31]} 4. Nc3 {[%emt 0:00:00]} c5 {[%emt 0:00:56]} 5. d5 {[%emt 0:00:01]} O-O {[%emt 0:00:16]} 6. Bf4 {[%emt 0:00:36]} d6 {[%emt 0:00:25]} 7. h3 {[%emt 0:00:08]} b5 {[%emt 0:05:34]} 8. cxb5 {[%emt 0:01:39]} a6 {[%emt 0:00:17]} 9. bxa6 {[%emt 0:03:45]} Bxa6 {[%emt 0:00:46]} 10. g3 {[%emt 0:01:36]} Nbd7 {[%emt 0:03:53]} 11. Bg2 {[%emt 0:00:23]} Nb6 {[%emt 0:04:28]} 12. O-O {[%emt 0:00:55]} Nc4 {[%emt 0:05:58]} 13. b3 {[%emt 0:00:54]} Nh5 {[%emt 0:02:59]} 14. bxc4 {[%emt 0:03:20]} Nxf4 {[%emt 0:00:23]} 15. gxf4 {[%emt 0:00:03]} Bxc3 {[%emt 0:00:11]} 16. Rc1 {[%emt 0:00:02]} Qa5 {[%emt 0:00:50]} 17. Qd3 {[%emt 0:00:27]} Bb2 {[%emt 0:11:41]} 18. Rc2 {[%emt 0:00:15]} Qxa2 {[%emt 0:02:24]} 19. Qe4 {[%emt 0:00:56]} Rfe8 20. Nd2 Qa3 21. Nf3 Rf8 1/2-1/2

[Event "Bhopal GM Open 2018"]
[Site "Bhopal"]
[Date "2018.12.28"]
[Round "10"]
[White "Raahul V S"]
[Black "Vignesh N R"]
[Result "1/2-1/2"]
[ECO "A22"]
[WhiteElo "2381"]
[BlackElo "2455"]
[Annotator "RC"]
[PlyCount "48"]
[EventDate "2018.12.21"]
[EventType "swiss"]
[EventCountry "IND"]
[SourceTitle "playchess.com"]
[Source "ChessBase"]
[SourceQuality "1"]
[TimeControl "5400+30"]

1. c4 {[%emt 0:00:00]} e5 {[%emt 0:00:01]} 2. Nc3 {[%emt 0:00:00]} Nf6 {[%emt 0:00:19]} 3. g3 {[%emt 0:00:00]} d5 {[%emt 0:00:06]} 4. cxd5 {[%emt 0:00:00]} Nxd5 {[%emt 0:00:04]} 5. Bg2 {[%emt 0:00:00]} Nb6 {[%emt 0:00:06]} 6. e3 {[%emt 0:00:00]} g6 {[%emt 0:07:33]} 7. Nge2 {[%emt 0:01:20]} Bg7 {[%emt 0:00:05]} 8. O-O {[%emt 0:06:47]} O-O {[%emt 0:01:23]} 9. f4 {[%emt 0:03:05]} exf4 {[%emt 0:09:51]} 10. Nxf4 {[%emt 0:03:32]} N8d7 {[%emt 0:03:02]} 11. d4 {[%emt 0:00:26]} c5 {[%emt 0:01:01]} 12. b3 {[%emt 0:05:38]} cxd4 {[%emt 0:06:56]} 13. exd4 {[%emt 0:00:02]} Nb8 {[%emt 0:00:47]} 14. Nfe2 {[%emt 0:04:36]} Re8 {[%emt 0:03:08]} 15. Ba3 {[%emt 0:08:09]} Nc6 {[%emt 0:11:55]} 16. d5 {[%emt 0:00:13]} Ne7 {[%emt 0:00:31]} 17. Rc1 {[%emt 0:02:59]} Bg4 {[%emt 0:02:09]} 18. d6 {[%emt 0:07:58]} Nf5 {[%emt 0:02:40]} 19. Qd2 {[%emt 0:01:30]} Ne3 {[%emt 0:10:16]} 20. Rf2 {[%emt 0:00:36]} Nxg2 {[%emt 0:03:31]} 21. Kxg2 {[%emt 0:00:06]} Qd7 {[%emt 0:06:47]} 22. Nf4 {[%emt 0:02:23]} Bh6 {[%emt 0:07:02]} 23. Qd4 {[%emt 0:02:25]} Bg7 {[%emt 0:00:23]} 24. Qd2 {[%emt 0:00:14]} Bh6 {[%emt 0:00:02]} 1/2-1/2

[Event "Bhopal GM Open 2018"]
[Site "Bhopal"]
[Date "2018.12.28"]
[Round "10"]
[White "Rathnakaran, K.."]
[Black "Sa, Kannan"]
[Result "1-0"]
[ECO "C40"]
[WhiteElo "2366"]
[BlackElo "2069"]
[Annotator "NA RC"]
[PlyCount "65"]
[EventDate "2018.12.21"]
[EventType "swiss"]
[EventCountry "IND"]
[SourceTitle "playchess.com"]
[Source "ChessBase"]
[SourceQuality "1"]
[TimeControl "5400+30"]

1. e4 {[%emt 0:00:00]} e5 {[%emt 0:03:30]} 2. Nf3 {[%emt 0:00:00]} Qe7 {[%emt 0:00:21]} 3. Bc4 {[%emt 0:00:15]} h6 {[%emt 0:00:23]} 4. O-O {[%emt 0:00:16]} d6 {[%emt 0:00:12]} 5. Nc3 {[%emt 0:00:07] C40: Latvian and Elephant Gambits} c6 {[%emt 0:00:04]} 6. d4 {[%emt 0:00:03]} g6 {[%emt 0:01:46]} (6... Nf6 7. a4 Qc7 8. a5 Be7 9. Nh4 Na6 10. dxe5 dxe5 11. f4 Nb4 12. f5 Qd6 13. Qe2 {1-0 (39) Adams,M (2740)-Kurajica,B (2541) Izmir 2004}) 7. dxe5 {[%emt 0:00:23]} dxe5 {[%emt 0:00:19]} 8. a4 {[%emt 0:00:05]} Bg4 $146 {[%emt 0:04:29]} ({Predecessor:} 8... Bg7 9. b3 Be6 10. Ba3 Qf6 11. Be2 Nd7 12. Qd6 Bf8 {1-0 (44) Bustamante,H (2098)-Mora Ramirez,M (2041) San Cristobal 2015}) 9. h3 {[%emt 0:00:07]} Bxf3 {[%emt 0:00:54]} 10. Qxf3 {[%emt 0:00:06]} ({Don't take} 10. gxf3 $6 Nd7 $14) 10... Qf6 {[%emt 0:01:47]} 11. Qe2 {[%emt 0:00:22]} g5 {[%emt 0:02:50]} 12. Rd1 {[%emt 0:01:02]} Bc5 {[%emt 0:04:17]} 13. a5 {[%emt 0:02:05]} Nd7 {[%emt 0:09:12]} 14. Na4 {[%emt 0:00:18]} Qe7 {[%emt 0:03:44]} 15. Nxc5 {[%emt 0:07:02]} Nxc5 {[%emt 0:00:36]} 16. b4 {[%emt 0:00:05]} Ne6 {[%emt 0:00:15]} 17. Ba3 {[%emt 0:00:04]} Nf6 {[%emt 0:10:56]} 18. b5 {[%emt 0:01:45]} c5 {[%emt 0:02:07]} 19. Bxe6 {[%emt 0:01:44]} fxe6 {[%emt 0:00:15]} 20. Bb2 {[%emt 0:00:10]} O-O {[%emt 0:05:38]} 21. Bxe5 {[%emt 0:00:10]} Rad8 {[%emt 0:00:15]} 22. c4 {[%emt 0:00:20]} Rd7 {[%emt 0:01:57]} 23. b6 {[%emt 0:05:07]} a6 {[%emt 0:01:17]} 24. Bc7 {[%emt 0:04:35]} Rf7 {[%emt 0:10:39]} 25. Qc2 {[%emt 0:10:34]} Ne8 $2 {[%emt 0:04:40]} (25... Kg7 26. Qc3 Kg6) 26. Rxd7 {[%emt 0:01:37]} Qxd7 {[%emt 0:00:02]} 27. Rd1 {[%emt 0:00:08]} Qc6 {[%emt 0:02:00]} 28. Rd8 $18 {[%emt 0:00:54]} Kh7 {[%emt 0:01:52]} 29. Be5 {[%emt 0:02:39]} Re7 {[%emt 0:06:24]} 30. Qe2 {[%emt 0:03:48]} Kg6 {[%emt 0:01:20]} 31. h4 {[%emt 0:00:09]} Rf7 {[%emt 0:00:26]} 32. hxg5 {[%emt 0:03:54]} hxg5 {[%emt 0:00:46]} 33. Qg4 {[%emt 0:00:15]} 1-0

[Event "Bhopal GM Open 2018"]
[Site "Bhopal"]
[Date "2018.12.28"]
[Round "10"]
[White "Ziatdinov, Raset"]
[Black "Aleksandrov, Aleksej"]
[Result "0-1"]
[ECO "C54"]
[WhiteElo "2252"]
[BlackElo "2590"]
[Annotator "RC"]
[PlyCount "84"]
[EventDate "2018.12.21"]
[EventType "swiss"]
[EventCountry "IND"]
[SourceTitle "playchess.com"]
[Source "ChessBase"]
[SourceQuality "1"]
[TimeControl "5400+30"]

1. e4 {[%emt 0:00:00]} e5 {[%emt 0:00:00]} 2. Nf3 {[%emt 0:00:00]} Nc6 {[%emt 0:00:00]} 3. Bc4 {[%emt 0:00:00]} Bc5 {[%emt 0:00:00]} 4. c3 {[%emt 0:00:00]} Nf6 {[%emt 0:00:02]} 5. d4 {[%emt 0:00:00]} exd4 {[%emt 0:00:07]} 6. cxd4 {[%emt 0:00:00]} Bb4+ {[%emt 0:00:13]} 7. Nc3 {[%emt 0:00:00]} Nxe4 {[%emt 0:00:36]} 8. O-O {[%emt 0:00:17]} Bxc3 {[%emt 0:00:10]} 9. d5 {[%emt 0:00:04]} Bf6 {[%emt 0:00:22]} 10. Re1 {[%emt 0:00:07]} Ne7 {[%emt 0:00:57]} 11. Rxe4 {[%emt 0:00:10]} d6 {[%emt 0:01:47]} 12. Bg5 {[%emt 0:01:35]} Bxg5 {[%emt 0:00:33]} 13. Nxg5 {[%emt 0:00:04]} h6 {[%emt 0:00:09]} 14. Qe2 {[%emt 0:06:08]} hxg5 {[%emt 0:00:46]} 15. Re1 {[%emt 0:00:04]} Be6 {[%emt 0:00:17]} 16. dxe6 {[%emt 0:00:07]} f6 {[%emt 0:00:14]} 17. Re3 {[%emt 0:00:22]} c6 {[%emt 0:01:31]} 18. b4 {[%emt 0:00:17]} Qb6 {[%emt 0:01:43]} 19. Rb1 {[%emt 0:15:18]} O-O-O {[%emt 0:15:26]} 20. a4 {[%emt 0:02:06]} d5 {[%emt 0:03:41]} 21. Bd3 {[%emt 0:02:33]} Kb8 {[%emt 0:00:57]} 22. h3 {[%emt 0:04:07]} d4 {[%emt 0:03:53]} 23. Rg3 {[%emt 0:19:19]} Nd5 {[%emt 0:01:25]} 24. Qd2 {[%emt 0:00:40]} Rhe8 {[%emt 0:04:05]} 25. Bf5 {[%emt 0:03:18]} Nf4 {[%emt 0:02:42]} 26. h4 {[%emt 0:04:15]} d3 {[%emt 0:05:50]} 27. Kf1 {[%emt 0:16:49]} Qc7 {[%emt 0:17:08]} 28. hxg5 {[%emt 0:04:49]} fxg5 {[%emt 0:00:05]} 29. Re1 {[%emt 0:01:09]} Qe7 {[%emt 0:05:23]} 30. Ree3 {[%emt 0:04:21]} Rh8 {[%emt 0:07:54]} 31. Bh3 {[%emt 0:00:25]} Rd4 {[%emt 0:00:12]} 32. Rxd3 {[%emt 0:03:41]} Rxd3 {[%emt 0:01:36]} 33. Rxd3 {[%emt 0:00:04]} Nxd3 {[%emt 0:00:04]} 34. Qxd3 {[%emt 0:00:09]} Qxb4 {[%emt 0:00:46]} 35. Qd7 {[%emt 0:00:09]} Qb1+ {[%emt 0:12:33]} 36. Ke2 {[%emt 0:00:02]} Qa2+ {[%emt 0:00:13]} 37. Ke1 {[%emt 0:01:07]} Qa1+ {[%emt 0:00:45]} 38. Ke2 {[%emt 0:01:30]} Qe5+ {[%emt 0:00:13]} 39. Kf1 {[%emt 0:00:22]} g4 {[%emt 0:03:50]} 40. e7 {[%emt 0:00:10]} Ka8 {[%emt 0:00:03]} 41. f4 {[%emt 0:10:04]} Qxf4+ {[%emt 0:00:07]} 42. Kg1 {[%emt 0:00:19]} Qe5 {[%emt 0:00:19]} 0-1

[Event "Bhopal GM Open 2018"]
[Site "Bhopal"]
[Date "2018.12.28"]
[Round "10"]
[White "Nayak Rajesh"]
[Black "Shyaamnikhil P"]
[Result "0-1"]
[ECO "B41"]
[WhiteElo "2173"]
[BlackElo "2448"]
[Annotator "NA RC"]
[PlyCount "54"]
[EventDate "2018.12.21"]
[EventType "swiss"]
[EventCountry "IND"]
[SourceTitle "playchess.com"]
[Source "ChessBase"]
[SourceQuality "1"]
[TimeControl "5400+30"]

1. e4 {[%emt 0:02:20]} c5 {[%emt 0:00:24]} 2. Nf3 {[%emt 0:00:15]} e6 {[%emt 0:01:46]} 3. d4 {[%emt 0:00:55]} cxd4 {[%emt 0:00:08]} 4. Nxd4 {[%emt 0:00:10]} a6 {[%emt 0:00:03]} 5. Be2 {[%emt 0:05:21]} Nf6 {[%emt 0:03:38] LiveBook: 633 Games} 6. Nc3 {[%emt 0:08:08]} Qc7 {[%emt 0:00:41]} 7. O-O {[%emt 0:02:31]} Bb4 {[%emt 0:09:24]} 8. Qd3 {[%emt 0:02:49]} Nc6 {[%emt 0:02:18]} 9. Nxc6 {[%emt 0:04:46]} bxc6 {[%emt 0:00:26]} 10. Be3 {[%emt 0:11:22] B43: Sicilian: Kan Variation: 5 Nc3} (10. Bg5 d5 11. Rad1 Bb7 12. Qe3 Be7 13. e5 Nd7 14. Bxe7 Kxe7 15. Qg5+ Kf8 16. f4 h6 17. Qh4 g6 18. Kh1 {1-0 (35) Azarov,S (2635)-Gorovets,A (2478) Greensboro 2014}) 10... d5 {[%emt 0:04:04]} 11. a3 {[%emt 0:12:17]} Be7 {[%emt 0:02:12]} 12. f4 {[%emt 0:02:19]} a5 {[%emt 0:04:58]} 13. Bd4 $146 {[%emt 0:05:22]} ({Predecessor:} 13. exd5 Nxd5 14. Kh1 Bd6 15. Ne4 Bxf4 16. Bxf4 Nxf4 17. Rxf4 Qxf4 18. Rf1 Qb8 19. Nd6+ Kf8 20. Rxf7+ Kg8 21. Qd4 {1-0 (21) Felber,J (2115)-Zemanian,L Long Island 1998}) 13... O-O {[%emt 0:10:45]} 14. Qg3 {[%emt 0:08:01]} Ne8 {[%emt 0:02:08]} 15. Rae1 {[%emt 0:07:32]} c5 {[%emt 0:07:46]} 16. Be5 {[%emt 0:08:16]} Qd8 {[%emt 0:00:23]} 17. Rd1 {[%emt 0:08:06]} d4 $1 {[%emt 0:10:01]} ({Reject} 17... f6 18. exd5 fxe5 19. dxe6 $11) 18. f5 $1 {[%emt 0:01:23]} Bh4 {[%emt 0:00:22]} (18... f6 $5 19. Bf4 $8 e5 $15) 19. Qf3 {[%emt 0:00:52]} Qe7 {[%emt 0:01:07]} 20. Na4 {[%emt 0:02:42]} (20. f6 $17 {might work better.} Bxf6 21. Bxf6 Nxf6 22. e5) 20... exf5 {[%emt 0:06:01]} 21. exf5 $19 {[%emt 0:00:29]} Bb7 {[%emt 0:16:58]} 22. Qf4 {[%emt 0:00:09]} Bf6 {[%emt 0:00:26]} 23. Bxf6 {[%emt 0:01:40]} Qxe2 {[%emt 0:00:45]} 24. Rd2 {[%emt 0:01:52]} Qe3+ {[%emt 0:00:06]} 25. Qxe3 {[%emt 0:00:02]} dxe3 {[%emt 0:00:04]} 26. Rd7 {[%emt 0:00:04]} Bc6 {[%emt 0:00:29]} 27. Nb6 {[%emt 0:00:26]} Bxd7 {[%emt 0:11:54]} 0-1

[Event "Bhopal GM Open 2018"]
[Site "Bhopal"]
[Date "2018.12.28"]
[Round "10"]
[White "Vaibhav Jayant Raut"]
[Black "Elgabry, Mohsen"]
[Result "1-0"]
[ECO "A05"]
[WhiteElo "2005"]
[BlackElo "2305"]
[Annotator "NA RC"]
[PlyCount "161"]
[EventDate "2018.12.21"]
[EventType "swiss"]
[EventCountry "IND"]
[SourceTitle "playchess.com"]
[Source "ChessBase"]
[SourceQuality "1"]
[TimeControl "5400+30"]

1. Nf3 {[%emt 0:00:00]} Nf6 {[%emt 0:00:00]} 2. g3 {[%emt 0:00:00]} g6 {[%emt 0:00:00]} 3. Bg2 {[%emt 0:00:00]} Bg7 {[%emt 0:00:02]} 4. O-O {[%emt 0:00:00]} O-O {[%emt 0:00:05]} 5. d3 {[%emt 0:00:09]} d5 {[%emt 0:00:23]} 6. Nbd2 {[%emt 0:00:06]} c5 {[%emt 0:00:33]} 7. e4 {[%emt 0:01:06]} dxe4 {[%emt 0:00:18]} 8. dxe4 {[%emt 0:00:07]} Nc6 {[%emt 0:00:41]} 9. c3 {[%emt 0:03:59]} Qc7 {[%emt 0:00:31]} 10. Qe2 {[%emt 0:02:04]} e5 {[%emt 0:00:19] A08: King's Indian Attack} 11. Nc4 {[%emt 0:07:12]} Be6 {[%emt 0:01:33]} 12. a4 {[%emt 0:05:11]} h6 {[%emt 0:12:00]} 13. Nh4 $146 {[%emt 0:07:39]} ({Predecessor:} 13. Nfd2 Rfe8 14. Re1 Rad8 15. Nf1 Bxc4 16. Qxc4 Na5 17. Qe2 Nb3 18. Rb1 Nxc1 19. Rbxc1 {0-1 (40) Pourramezanali,A (2533)-Yu,Y (2744) Tbilisi 2017}) 13... Bxc4 {[%emt 0:01:22]} 14. Qxc4 {[%emt 0:02:35]} Na5 {[%emt 0:00:03]} 15. Qe2 {[%emt 0:00:50]} Nb3 {[%emt 0:00:08]} 16. Rb1 {[%emt 0:00:21]} Nxc1 {[%emt 0:00:35]} 17. Rbxc1 {[%emt 0:00:18]} c4 {[%emt 0:05:58]} 18. Rcd1 {[%emt 0:02:37]} h5 {[%emt 0:00:58]} 19. Rfe1 {[%emt 0:11:05]} a6 {[%emt 0:00:45]} 20. a5 {[%emt 0:06:07]} Qc5 {[%emt 0:03:24]} 21. Ra1 {[%emt 0:07:42]} Rac8 {[%emt 0:01:58]} 22. Ra4 {[%emt 0:04:26]} Rfd8 {[%emt 0:02:45]} 23. Bf1 {[%emt 0:04:25]} Qb5 {[%emt 0:11:34]} 24. Rxc4 {[%emt 0:16:38]} Qxa5 {[%emt 0:00:15]} 25. Rxc8 {[%emt 0:01:17]} Rxc8 {[%emt 0:00:06]} 26. Rd1 {[%emt 0:02:15]} Bf8 {[%emt 0:03:35]} 27. Nf3 {[%emt 0:01:50]} Kg7 {[%emt 0:01:32]} 28. h3 {[%emt 0:02:19]} Qc7 {[%emt 0:12:08]} 29. Kg2 {[%emt 0:03:12]} Bc5 {[%emt 0:00:51]} 30. Qc4 {[%emt 0:01:32]} b5 {[%emt 0:00:12]} 31. Qd3 {[%emt 0:01:25]} Re8 {[%emt 0:01:25]} 32. Qc2 {[%emt 0:01:23]} Qb6 {[%emt 0:04:57]} 33. Bd3 {[%emt 0:01:19]} Re7 {[%emt 0:02:11]} 34. Qe2 {[%emt 0:00:36]} Ne8 {[%emt 0:00:37]} 35. Bb1 {[%emt 0:01:02]} Re6 {[%emt 0:00:31]} (35... a5 $11 {keeps the balance.}) 36. Ba2 {[%emt 0:00:48]} Rf6 {[%emt 0:00:02]} 37. b4 {[%emt 0:01:21]} Bd6 {[%emt 0:00:43]} 38. Ng5 {[%emt 0:01:21]} a5 {[%emt 0:02:18]} 39. Nxf7 {[%emt 0:01:36]} axb4 {[%emt 0:01:48]} 40. cxb4 {[%emt 0:00:44]} Rxf7 {[%emt 0:09:25]} 41. Bxf7 {[%emt 0:00:03]} Kxf7 {[%emt 0:00:01]} 42. Qa2+ {[%emt 0:00:16]} Kf6 {[%emt 0:01:36]} 43. Qg8 {[%emt 0:01:02]} Qc6 {[%emt 0:01:08]} 44. Rd5 {[%emt 0:00:59]} Qc4 {[%emt 0:01:24]} 45. Kf3 {[%emt 0:00:44]} Qc6 $11 {[%emt 0:03:57]} (45... Qc3+ $17 46. Ke2 Qc2+ 47. Kf3 Qc3+ $17 48. Kg2 Qxb4 49. Kf3 Qc3+ 50. Kg2 Qc6 $11) 46. Kg2 {[%emt 0:00:45]} Ng7 {[%emt 0:02:41]} 47. Qd8+ {[%emt 0:00:28]} Ke6 {[%emt 0:01:24]} 48. Qg8+ {[%emt 0:00:10]} Kf6 {[%emt 0:00:01]} 49. Qd8+ {[%emt 0:00:11]} Be7 {[%emt 0:01:04]} 50. Qb8 {[%emt 0:00:09]} Qc3 {[%emt 0:00:15]} 51. Rxb5 {[%emt 0:00:39]} g5 {[%emt 0:03:15]} 52. Rb6+ {[%emt 0:00:37]} Kf7 {[%emt 0:00:15]} 53. Qb7 {[%emt 0:00:48]} Qd3 {[%emt 0:03:11]} 54. Qc6 {[%emt 0:00:23]} Kg8 {[%emt 0:00:44]} 55. Qg6 {[%emt 0:00:36]} Qc4 {[%emt 0:01:53]} 56. b5 {[%emt 0:00:23]} Qf7 {[%emt 0:02:07]} 57. Rb8+ {[%emt 0:00:18]} Bf8 {[%emt 0:00:01]} 58. Qxg5 {[%emt 0:00:34]} Kh7 {[%emt 0:01:27]} 59. b6 {[%emt 0:00:32]} Bd6 {[%emt 0:00:11]} 60. Rd8 {[%emt 0:00:43]} Bc5 {[%emt 0:00:03]} 61. Qd2 {[%emt 0:00:43]} Bxb6 62. Rd7 {[%emt 0:00:04]} Qg6 {[%emt 0:00:53]} 63. Qd3 {[%emt 0:01:05]} Qf6 {[%emt 0:00:05]} 64. Qf3 {[%emt 0:00:24]} Qxf3+ {[%emt 0:01:43]} 65. Kxf3 {[%emt 0:00:01]} Bd4 {[%emt 0:00:01]} 66. Ke2 {[%emt 0:00:51]} Kg6 {[%emt 0:00:01]} 67. f4 {[%emt 0:00:17]} Kf6 {[%emt 0:01:11]} 68. f5 {[%emt 0:01:02]} Nxf5 {[%emt 0:01:35]} 69. exf5 {[%emt 0:00:11]} Kxf5 {[%emt 0:00:02]} 70. Rf7+ {[%emt 0:00:25]} Kg6 {[%emt 0:00:02]} 71. Rd7 {[%emt 0:00:39]} Kf5 {[%emt 0:00:06]} 72. Kd3 {[%emt 0:00:18]} h4 {[%emt 0:00:32]} 73. g4+ {[%emt 0:00:05]} Kf4 {[%emt 0:00:10]} 74. Rxd4+ {[%emt 0:00:25]} exd4 {[%emt 0:00:33]} 75. Kxd4 {[%emt 0:00:02]} Kg3 {[%emt 0:00:22]} 76. g5 {[%emt 0:00:04]} Kxh3 {[%emt 0:00:28]} 77. g6 {[%emt 0:00:01]} Kh2 {[%emt 0:00:13]} 78. g7 {[%emt 0:00:02]} h3 {[%emt 0:00:10]} 79. Ke3 {[%emt 0:01:25]} Kh1 {[%emt 0:00:02]} 80. Kf2 {[%emt 0:00:37]} h2 {[%emt 0:01:32]} 81. Kf3 {[%emt 0:00:04]} 1-0